bitfinex-derivatives/quotes_ETHF0:USTF0_20250919
["timestamp","ask_amount","ask_price","bid_price","bid_amount"]
[1758257495963,1.69756733,4554.1,4554.0,0.8409]
[1758257497165,6.93856733,4554.1,4554.0,0.8409]
[1758257498965,7.23276733,4554.1,4554.0,0.8409]
[1758257501765,7.0788642,4554.1,4554.0,0.8409]
[1758257503761,5.241,4554.1,4554.0,0.8409]
[1758257504365,5.241,4554.1,4554.0,5.28148]
[1758257504767,5.241,4554.1,4554.0,5.9713642]
[1758257505862,5.241,4554.1,4554.0,5.0619]
[1758257506061,6.8578642,4554.1,4554.0,0.634]
[1758257506566,6.5636642,4554.1,4554.0,0.8409]
[1758257507566,6.7846642,4554.1,4554.0,0.8409]
[1758257509070,6.5636642,4554.1,4554.0,0.8409]
[1758257509271,6.7846642,4554.1,4554.0,0.8409]
[1758257509472,6.5803642,4554.1,4554.0,0.8409]
[1758257514075,6.7846642,4554.1,4554.0,0.8409]
[1758257514680,7.0788642,4554.1,4554.0,0.3086]
[1758257515075,7.0788642,4554.1,4554.0,0.5173]
[1758257515677,7.0788642,4554.1,4554.0,0.3086]
[1758257517379,0.7772,4554.0,4553.9,3.2078]
[1758257517677,0.7772,4554.0,4553.8,0.0219]
[1758257517877,1.8437642,4553.9,4553.8,0.0219]
[1758257518277,1.8437642,4553.9,4553.5,0.5374]
[1758257518478,1.6259642,4553.6,4553.5,0.5374]
[1758257519376,1.6259642,4553.6,4553.5,0.7504]
[1758257519576,1.6259642,4553.6,4553.5,0.5374]
[1758257520272,1.6259642,4553.6,4553.3,3.2078]
[1758257520273,0.4153,4553.4,4553.3,3.5242]
[1758257520582,1.6259642,4553.4,4553.3,3.2078]
[1758257521079,1.6259642,4553.4,4553.3,3.5242]
[1758257521484,1.6259642,4553.4,4553.3,3.9415]
[1758257521778,0.9094642,4553.6,4553.3,3.9415]
[1758257521973,0.221,4553.6,4553.5,0.5353]
[1758257522175,0.4285,4553.6,4553.5,0.8517]
[1758257522378,1.3379642,4553.6,4553.5,0.8517]
[1758257523780,1.5457642,4553.6,4553.5,0.8517]
[1758257523981,7.0879642,4553.6,4553.5,0.8517]
[1758257528378,7.0879642,4553.6,4553.5,0.5294]
[1758257529378,7.0879642,4553.6,4553.3,3.2078]
[1758257529582,1.6259642,4553.4,4553.3,3.2078]
[1758257529781,1.8469642,4553.4,4553.3,3.2078]
[1758257532784,2.7564284,4553.4,4553.3,3.2078]
[1758257533189,1.8469642,4553.4,4553.3,3.2078]
[1758257535190,1.8469642,4553.4,4553.1,0.0219]
[1758257535485,1.6259642,4553.2,4553.1,0.3383]
[1758257535691,1.6259642,4553.2,4553.1,0.0219]
[1758257535990,1.6259642,4553.2,4553.1,0.3164]
[1758257538802,0.7961,4553.0,4552.9,0.0219]
[1758257539097,2.8360284,4553.0,4552.9,0.0219]
[1758257541403,2.5348284,4553.0,4552.8,3.2078]
[1758257541603,0.7165,4552.9,4552.8,3.5242]
[1758257542204,0.7165,4552.9,4552.8,3.2078]
[1758257542901,0.3012,4552.8,4552.4,0.3164]
[1758257543101,0.7165,4552.5,4552.4,0.7337]
[1758257543696,0.2075,4552.7,4552.6,0.7337]
[1758257543904,1.8469642,4552.7,4552.6,0.7337]
[1758257544705,7.0879642,4552.7,4552.6,0.7337]
[1758257545907,7.0879642,4552.7,4552.6,0.5294]
[1758257549512,7.0879642,4552.7,4552.6,0.7337]
[1758257550715,7.0879642,4552.7,4552.6,0.5294]
[1758257550914,7.0879642,4552.7,4552.6,0.3164]
[1758257553216,7.0879642,4552.7,4552.6,0.5164]
[1758257553908,7.0879642,4552.7,4552.6,0.717]
[1758257554712,0.221,4552.8,4552.7,0.7079]
[1758257555113,0.9094642,4552.9,4552.7,0.4006]
[1758257555313,0.9094642,4552.9,4552.5,0.127]
[1758257555314,0.9094642,4552.9,4552.8,0.7079]
[1758257555615,1.1222642,4552.9,4552.8,0.7079]
[1758257555817,1.3432642,4552.9,4552.8,0.7079]
[1758257556313,1.5426642,4552.9,4552.8,0.7079]
[1758257558115,1.8531642,4552.9,4552.8,0.7079]
[1758257559211,0.9437,4552.9,4552.8,0.7079]
[1758257561919,0.6332,4552.9,4552.8,0.7079]
[1758257562111,0.9094642,4553.0,4552.9,0.3073]
[1758257562311,0.9094642,4553.3,4553.2,0.7079]
[1758257562513,1.1304642,4553.3,4553.2,0.7079]
[1758257562711,0.9094642,4553.3,4553.2,0.7079]
[1758257562912,1.1304642,4553.3,4553.2,0.7079]
[1758257563524,1.1304642,4553.5,4553.3,0.3073]
[1758257563712,1.28521275,4553.5,4553.4,0.4006]
[1758257563918,1.49801275,4553.5,4553.4,0.7079]
[1758257565028,1.69741275,4553.5,4553.4,0.7079]
[1758257566432,2.00791275,4553.5,4553.4,0.7079]
[1758257568032,1.69741275,4553.5,4553.4,0.7079]
[1758257568325,1.06421275,4553.5,4553.4,0.7079]
[1758257570233,1.27701275,4553.5,4553.4,0.7079]
[1758257570734,1.47641275,4553.5,4553.4,0.7079]
[1758257571329,1.78691275,4553.5,4553.4,0.7079]
[1758257572034,1.47641275,4553.5,4553.4,0.7079]
[1758257572928,1.78691275,4553.5,4553.4,0.7079]
[1758257573532,1.78691275,4553.5,4553.4,0.3073]
[1758257573837,1.78691275,4553.5,4553.1,0.3073]
[1758257574041,1.47641275,4553.1,4553.0,1.07642]
[1758257574229,1.47641275,4553.1,4553.0,0.8568]
[1758257574431,1.47641275,4553.1,4553.0,0.8349]
[1758257574936,1.27701275,4553.1,4553.0,0.8349]
[1758257575838,1.06421275,4553.3,4553.1,0.3057]
[1758257576138,1.26161275,4553.3,4553.2,0.698]
[1758257577333,1.06421275,4553.3,4553.2,0.698]
[1758257579537,1.26161275,4553.3,4553.2,0.698]
[1758257580235,1.26161275,4553.3,4553.2,3.9058]
[1758257586843,1.45581275,4553.3,4553.2,3.9058]
[1758257592445,1.26161275,4553.3,4553.2,3.9058]
[1758257592644,0.2984,4554.3,4553.3,0.292]
[1758257592844,1.06421275,4553.5,4553.4,0.7076]
[1758257593448,1.27641275,4553.5,4553.4,0.7076]
[1758257595847,0.2984,4554.0,4553.4,0.4156]
[1758257596149,0.2122,4553.9,4553.8,0.7076]
[1758257597345,0.4064,4553.9,4553.8,0.7076]
[1758257597552,0.7048,4553.9,4553.8,0.292]
[1758257598147,5.9458,4553.9,4553.8,0.292]
[1758257598552,5.9458,4553.9,4553.8,0.494]
[1758257598853,5.6474,4553.9,4553.8,0.7076]
[1758257599047,5.9458,4553.9,4553.8,0.7076]
[1758257599553,1.76901275,4553.9,4553.6,0.0219]
[1758257600046,1.98861276,4553.9,4553.6,0.0219]
[1758257600444,0.4414896,4553.8,4553.6,0.0219]
[1758257600642,0.2984,4553.2,4552.7,0.292]
[1758257600852,0.5106,4552.7,4552.6,3.2078]
[1758257601050,0.7048,4552.7,4552.6,3.4998]
[1758257602752,0.7048,4552.7,4552.6,3.7018]
[1758257603350,0.2122,4553.1,4553.0,0.1262]
[1758257603553,1.47061275,4553.1,4553.0,0.8338]
[1758257604053,1.06421275,4553.4,4553.0,0.8338]
[1758257604348,1.27641275,4553.8,4553.7,0.7076]
[1758257604545,2.4217227,4553.8,4553.7,0.7076]
[1758257604953,2.7201227,4553.8,4553.7,0.7076]
[1758257605252,1.43490995,4553.8,4553.7,0.7076]
[1758257605451,0.4064,4553.8,4553.7,0.7076]
[1758257605650,1.47061275,4553.8,4553.7,3.9154]
[1758257606655,1.76901275,4553.8,4553.7,3.9154]
[1758257607262,1.76901275,4553.8,4553.7,3.2078]
[1758257607559,1.76901275,4553.8,4553.7,0.494]
[1758257607759,1.76901275,4553.8,4553.7,0.292]
[1758257608055,1.76901275,4553.8,4553.1,0.2942]
[1758257608355,0.2024,4553.2,4553.1,0.7136]
[1758257608555,1.06421275,4553.4,4553.2,0.2942]
[1758257608854,1.06421275,4553.4,4553.3,0.7136]
[1758257609955,1.06421275,4553.6,4553.5,0.5358]
[1758257610154,1.06421275,4553.6,4553.5,0.83]
[1758257610351,1.26661275,4553.6,4553.5,0.83]
[1758257612861,6.50761275,4553.6,4553.5,0.83]
[1758257616562,7.01021275,4553.6,4553.5,0.83]
[1758257616758,7.01021275,4553.6,4553.5,0.6162]
[1758257616958,7.01021275,4553.6,4553.0,0.1262]
[1758257617157,1.47831275,4553.2,4553.1,0.4998]
[1758257617356,1.47831275,4553.2,4553.1,0.7136]
[1758257618464,1.76921275,4553.2,4553.1,0.7136]
[1758257618864,7.01021275,4553.2,4553.1,0.7136]
[1758257619163,7.01021275,4553.2,4553.1,0.4998]
[1758257619360,7.01021275,4553.2,4553.1,0.2942]
[1758257619864,5.946,4553.2,4553.1,0.7136]
[1758257620067,7.01021275,4553.2,4553.1,0.7136]
[1758257621571,7.01021275,4553.2,4553.1,0.4998]
[1758257622564,7.23121275,4553.2,4553.1,0.4998]
[1758257623868,7.07677463,4553.2,4553.1,0.4998]
[1758257625662,7.07677463,4553.2,4553.0,0.1164]
[1758257625663,7.07677463,4553.2,4552.9,3.2078]
[1758257625858,0.705,4553.0,4552.9,3.6272]
[1758257626169,1.61477463,4553.0,4552.9,3.6272]
[1758257626467,1.61477463,4553.0,4552.9,3.9214]
[1758257628068,1.32387463,4553.0,4552.9,3.9214]
[1758257629666,1.11217463,4553.0,4552.9,3.9214]
[1758257630671,6.35317463,4553.0,4552.9,3.9214]
[1758257631470,6.15077463,4553.0,4552.9,3.9214]
[1758257633568,6.35317463,4553.0,4552.9,3.9214]
[1758257634763,5.241,4553.0,4552.9,3.9214]
[1758257636572,5.241,4553.1,4553.0,0.3159]
[1758257636778,5.241,4553.1,4553.0,1.74257463]
[1758257637772,5.4406,4553.1,4553.0,1.74257463]
[1758257638168,5.4406,4553.1,4553.0,1.96357463]
[1758257638776,5.241,4553.1,4553.0,1.96357463]
[1758257638976,0.90977463,4553.2,4553.1,0.3148]
[1758257639173,1.12347463,4553.2,4553.1,0.7126]
[1758257640969,3.5651,4554.5,4553.8,0.7126]
[1758257641171,0.2137,4554.6,4554.5,0.5261]
[1758257641367,1.6303575,4554.6,4554.5,0.8409]
[1758257641567,1.12347463,4554.6,4554.5,0.8409]
[1758257642675,0.2137,4555.3,4555.2,0.7126]
[1758257642976,1.32997463,4555.3,4555.2,0.7126]
[1758257643179,1.62467463,4555.3,4555.2,0.7126]
[1758257645777,1.32997463,4555.3,4555.2,0.7126]
[1758257646078,1.12347463,4555.3,4555.2,0.7126]
[1758257646481,1.32997463,4555.3,4555.2,0.7126]
[1758257649373,1.62467463,4555.3,4555.2,0.7126]
[1758257650075,0.7149,4555.3,4555.2,0.7126]
[1758257650274,1.62467463,4555.3,4555.2,0.7126]
[1758257650576,1.32997463,4555.3,4555.2,0.7126]
[1758257651476,0.4202,4555.3,4555.2,0.7126]
[1758257651681,1.32997463,4555.3,4555.2,0.7126]
[1758257651977,1.32997463,4555.3,4555.2,0.9336]
[1758257654180,1.62467463,4555.3,4555.2,0.9336]
[1758257655375,1.62467463,4555.3,4555.2,0.7301]
[1758257655580,1.62467463,4555.3,4555.2,0.5358]
[1758257655980,1.62467463,4555.3,4555.2,0.7301]
[1758257657481,6.86567463,4555.3,4555.2,0.7301]
[1758257658079,6.57097463,4555.3,4555.2,0.9336]
[1758257658779,5.6612,4555.3,4555.2,0.9336]
[1758257658984,5.4547,4555.3,4555.2,0.9336]
[1758257661478,0.2137,4556.1,4556.0,0.8409]
[1758257661785,0.2137,4556.1,4556.0,4.0487]
[1758257663386,1.32997463,4556.1,4556.0,4.0487]
[1758257665085,1.32997463,4556.1,4556.0,4.2697]
[1758257666278,1.62467463,4556.1,4556.0,4.2697]
[1758257667880,0.90977463,4556.7,4556.6,0.1943]
[1758257668080,0.90977463,4556.7,4556.6,0.7126]
[1758257668289,1.12017463,4556.7,4556.6,0.7126]
[1758257669492,9.35857463,4556.9,4556.7,0.3128]
[1758257669683,9.56897463,4556.9,4556.8,0.4092]
[1758257669885,10.07627463,4556.9,4556.8,0.722]
[1758257670380,6.86847463,4556.9,4556.8,0.722]
[1758257670587,6.86847463,4556.9,4556.8,0.517]
[1758257670780,5.241,4556.9,4556.8,1.63177463]
[1758257671190,5.241,4556.9,4556.8,0.722]
[1758257671385,5.4514,4556.9,4556.8,0.722]
[1758257671696,6.56907463,4556.9,4556.8,0.722]
[1758257671882,6.35867463,4556.9,4556.8,0.722]
[1758257672188,3.4182,4557.5,4557.4,0.722]
[1758257672893,4.32797463,4557.5,4557.4,0.722]
[1758257673184,3.2078,4557.5,4557.4,0.722]
[1758257673381,3.2078,4558.0,4557.8,0.4092]
[1758257673581,0.98947463,4559.0,4558.0,0.4371]
[1758257673582,4.41697463,4558.5,4558.0,0.4371]
[1758257673783,3.9255,4558.5,4558.4,0.517]
[1758257673983,4.83527463,4558.5,4558.4,0.517]
[1758257674179,1.62747463,4558.5,4558.4,0.3128]
[1758257677384,1.84847463,4558.5,4558.4,0.3128]
[1758257678882,1.84847463,4558.5,4558.4,0.517]
[1758257679581,1.84847463,4558.5,4558.4,0.3128]
[1758257680384,0.9387,4558.5,4558.4,0.3128]
[1758257680585,0.4183,4558.1,4558.0,3.5363]
[1758257680785,0.4183,4558.1,4558.0,4.0541]
[1758257683388,0.90977463,4558.4,4558.0,3.7413]
[1758257683590,1.32807463,4558.4,4558.3,0.722]
[1758257683890,0.7177,4558.4,4558.3,0.722]
[1758257684490,0.4183,4558.4,4558.3,0.722]
[1758257687293,0.7177,4558.4,4558.3,0.3128]
[1758257687699,1.77964768,4558.4,4558.3,0.3128]
[1758257688597,1.77964768,4558.4,4558.3,0.517]
[1758257692998,1.77964768,4558.4,4558.3,0.722]
[1758257694704,1.27234768,4558.4,4558.3,0.722]
[1758257695596,1.48024768,4558.4,4558.3,0.722]
[1758257695807,5.6593,4558.4,4558.3,0.722]
[1758257696405,5.6593,4558.4,4558.3,1.78394768]
[1758257697306,5.6593,4558.4,4558.3,0.722]
[1758257698407,5.9585,4558.4,4558.3,0.722]
[1758257700712,3.2078,4559.0,4558.9,0.6908]
[1758257700910,3.2078,4559.0,4558.9,1.75274768]
[1758257701109,3.4088,4559.0,4558.9,1.75274768]
[1758257701311,3.62,4559.0,4558.9,0.6908]
[1758257701510,3.9192,4559.0,4558.9,0.6908]
[1758257702211,0.7114,4559.0,4558.9,0.6908]
[1758257704812,0.7114,4559.0,4558.9,0.4875]
[1758257705020,0.7114,4559.0,4558.9,0.2932]
[1758257705218,0.7114,4559.0,4558.9,0.4875]
[1758257705915,0.7114,4559.0,4558.9,0.2932]
[1758257707418,0.7114,4559.0,4558.9,0.4875]
[1758257707613,0.7114,4559.0,4558.9,0.6908]
[1758257707614,0.4122,4559.0,4558.9,0.6908]
[1758257707818,0.7114,4559.0,4558.9,0.6908]
[1758257709719,0.7114,4559.0,4558.9,0.4875]
[1758257710718,0.7114,4559.0,4558.9,0.6908]
[1758257710921,0.4122,4559.0,4558.9,0.6908]
[1758257723230,0.7114,4559.0,4558.9,0.6908]
[1758257723430,0.4122,4559.0,4558.9,0.6908]
[1758257724332,0.201,4559.0,4558.9,0.6908]
[1758257729132,0.70667957,4559.0,4558.9,0.6908]
[1758257729836,0.201,4559.0,4558.9,0.6908]
[1758257730433,0.45,4559.4,4558.9,0.6908]
[1758257730638,0.45,4559.4,4558.7,1.08384768]
[1758257730639,1.13543301,4559.3,4559.2,0.7203]
[1758257731139,0.91609301,4559.3,4559.2,0.7203]
[1758257732234,0.72189301,4559.3,4559.2,0.7203]
[1758257733240,0.91609301,4559.3,4559.2,0.7203]
[1758257738045,1.11419301,4559.3,4559.2,0.7203]
[1758257738846,1.41339301,4559.3,4559.2,0.7203]
[1758257741838,1.11369298,4559.3,4559.2,0.7203]
[1758257745951,1.41289298,4559.3,4559.2,0.7203]
[1758257746949,0.72139298,4559.3,4559.2,1.62762497]
[1758257747155,0.50568143,4559.3,4559.2,1.62762497]
[1758257747552,0.50568143,4559.3,4559.2,0.93962999]
[1758257747749,0.50568143,4559.3,4559.2,1.62762497]
[1758257748051,0.45,4559.4,4559.3,0.7203]
[1758257748254,0.45,4559.4,4559.3,0.93962999]
[1758257748449,0.45,4559.4,4559.3,0.7203]
[1758257749255,0.45,4559.4,4559.3,1.62762497]
[1758257750251,0.45,4559.4,4559.3,0.7203]
[1758257750453,0.45,4559.4,4559.3,5.84695496]
[1758257750857,0.45,4559.4,4559.3,5.62762497]
[1758257751552,0.2992,4560.6,4559.3,5.62762497]
[1758257751553,3.7261,4561.0,4560.9,0.7203]
[1758257751759,4.44905266,4561.0,4560.9,1.62762497]
[1758257752062,4.44535266,4561.0,4560.9,1.62762497]
[1758257752353,3.9205,4561.0,4560.9,1.62762497]
[1758257752559,4.95382497,4561.0,4560.9,0.2046]
[1758257752751,0.1942,4560.4,4560.3,0.5235]
[1758257753062,0.7127,4560.4,4560.3,1.43082497]
[1758257754051,0.7127,4560.4,4560.3,0.2046]
[1758257754257,0.7127,4560.3,4560.2,3.2078]
[1758257756162,4.9337,4560.3,4560.0,0.0219]
[1758257756360,1.63932497,4560.1,4560.0,0.0219]
[1758257757468,1.63932497,4560.1,4559.7,4.11512497]
[1758257757764,0.732,4559.8,4559.7,4.11512497]
[1758257758167,0.732,4559.8,4559.7,4.31082497]
[1758257758661,1.63932497,4559.8,4559.7,3.2078]
[1758257759259,0.732,4559.8,4559.7,3.7162]
[1758257759466,0.732,4559.8,4559.7,3.9122]
[1758257759766,0.732,4559.8,4559.7,4.81952497]
[1758257760668,0.732,4559.8,4559.7,3.4105]
[1758257760864,1.63932497,4559.8,4559.7,3.2078]
[1758257761664,1.63932497,4559.8,4559.7,3.4105]
[1758257762064,1.63932497,4559.8,4559.7,3.2078]
[1758257762663,0.732,4559.8,4559.7,3.4105]
[1758257763565,0.732,4559.8,4559.7,3.7162]
[1758257764171,0.732,4559.8,4559.7,3.4105]
[1758257765268,0.732,4559.8,4559.7,0.2027]
[1758257765669,0.732,4559.8,4559.5,0.0219]
[1758257765873,1.59662497,4559.6,4559.5,0.5303]
[1758257766072,1.59662497,4559.6,4559.5,0.7263]
[1758257766272,1.59662497,4559.6,4559.5,0.7044]
[1758257766970,0.6893,4559.3,4559.2,3.9372]
[1758257767170,0.6893,4559.3,4559.2,3.7162]
[1758257767375,0.6893,4559.3,4559.2,3.9122]
[1758257769174,0.221,4559.7,4559.2,4.81952497]
[1758257769377,0.5127,4559.7,4559.6,0.3987]
[1758257769675,0.7101,4559.7,4559.6,0.7044]
[1758257771170,0.9103,4559.7,4559.6,0.5084]
[1758257773377,0.6893,4559.7,4559.6,0.7044]
[1758257773674,0.9103,4559.7,4559.6,0.7044]
[1758257775975,6.1513,4559.7,4559.6,0.7044]
[1758257776574,5.9303,4559.7,4559.6,0.7044]
[1758257776874,6.1513,4559.7,4559.6,0.7044]
[1758257779179,7.05862497,4559.7,4559.6,0.7044]
[1758257780178,6.1513,4559.7,4559.6,0.7044]
[1758257780575,5.9303,4559.7,4559.6,0.7044]
[1758257780776,6.1513,4559.7,4559.6,0.7044]
[1758257781473,5.9303,4559.7,4559.6,0.7044]
[1758257782473,5.4384,4559.7,4559.6,0.7044]
[1758257782678,5.4384,4559.7,4559.6,1.61172497]
[1758257784481,5.7301,4559.7,4559.6,1.61172497]
[1758257784681,5.241,4559.7,4559.6,1.61172497]
[1758257786376,0.1974,4559.8,4559.7,0.3057]
[1758257786582,0.4891,4559.8,4559.7,5.04052497]
[1758257789485,0.90732497,4560.2,4559.7,5.04052497]
[1758257789686,0.2071,4559.9,4559.8,0.7022]
[1758257789890,0.5103,4559.9,4559.8,0.7022]
[1758257790690,0.5103,4559.9,4559.8,1.60952497]
[1758257796792,5.7513,4559.9,4559.8,1.60952497]
[1758257798297,5.945,4559.9,4559.8,1.60952497]
[1758257798498,5.945,4559.9,4559.8,0.7022]
[1758257798795,0.704,4559.8,4559.7,3.4288]
[1758257799394,0.704,4559.8,4559.7,3.6266]
[1758257799994,1.61132497,4559.8,4559.7,3.4056]
[1758257800194,1.61132497,4559.8,4559.7,3.2078]
[1758257801399,0.704,4559.8,4559.7,3.2078]
[1758257801697,0.704,4559.8,4559.7,3.4056]
[1758257801698,1.61132497,4559.8,4559.7,3.4056]
[1758257802493,1.84315134,4559.8,4559.5,0.0219]
[1758257802695,1.61132497,4559.6,4559.5,0.0219]
[1758257803095,1.61132497,4559.6,4559.2,0.7174]
[1758257803096,0.4008,4559.3,4559.2,0.7174]
[1758257803398,1.61132497,4559.3,4559.2,0.7174]
[1758257803790,1.61132497,4559.3,4559.2,0.4188]
[1758257804190,1.61132497,4559.3,4559.2,0.1978]
[1758257804590,1.61132497,4559.3,4559.2,0.4964]
[1758257805597,1.61132497,4559.3,4559.2,0.7022]
[1758257805801,0.704,4559.3,4559.2,0.7022]
[1758257807894,0.704,4559.3,4559.1,3.4288]
[1758257808100,0.3032,4559.4,4559.3,0.4036]
[1758257808601,0.3032,4559.4,4559.3,0.7022]
[1758257808806,0.3032,4559.4,4559.3,0.9232]
[1758257810198,0.3032,4559.6,4559.4,0.2986]
[1758257810394,0.5103,4559.6,4559.5,0.7022]
[1758257811904,0.3032,4559.6,4559.5,0.827]
[1758257814506,0.5103,4559.6,4559.5,0.827]
[1758257816509,0.5103,4559.6,4559.5,0.7022]
[1758257816704,0.708,4559.6,4559.5,0.7022]
[1758257819708,0.5103,4559.6,4559.5,0.8197]
[1758257821904,0.7223,4559.6,4559.5,0.7022]
[1758257823107,0.95422683,4559.6,4559.5,0.7022]
[1758257824411,0.23192683,4559.6,4559.5,1.88119379]
[1758257824606,0.3021,4560.2,4559.5,0.5211]
[1758257824805,0.4957,4559.6,4559.5,0.4036]
[1758257825310,0.23196509,4559.6,4559.5,0.8156]
[1758257825612,0.93966509,4559.6,4559.5,0.6981]
[1758257828114,0.23196509,4559.6,4559.5,0.8156]
[1758257828313,0.72766509,4559.6,4559.5,0.8156]
[1758257829016,0.4957,4559.6,4559.5,0.8156]
[1758257829508,5.7367,4559.6,4559.5,0.8156]
[1758257829909,5.4346,4559.6,4559.5,0.8156]
[1758257831614,5.241,4559.6,4559.5,0.8156]
[1758257831913,5.5431,4559.6,4559.5,0.8156]
[1758257832615,5.241,4559.6,4559.5,5.03492]
[1758257833713,5.241,4559.6,4559.5,4.8156]
[1758257834308,5.241,4559.6,4559.5,5.0366]
[1758257835216,0.3021,4560.4,4559.6,0.2945]
[1758257835417,0.4056,4560.2,4560.1,3.4089]
[1758257835615,0.7077,4560.2,4560.1,3.6299]
[1758257836815,0.7077,4560.2,4560.1,3.4288]
[1758257837719,0.7077,4560.2,4560.1,3.6299]
[1758257838218,0.7077,4560.2,4560.1,4.1342]
[1758257840015,0.4957,4560.2,4560.1,4.1342]
[1758257840224,0.7077,4560.8,4560.7,0.2011]
[1758257840423,0.7077,4560.8,4560.7,1.55709379]
[1758257842721,0.7077,4560.8,4560.7,0.4956]
[1758257844215,0.4056,4560.8,4560.4,0.5155]
[1758257844420,0.4056,4560.6,4560.5,0.4956]
[1758257844721,0.7077,4560.6,4560.5,0.7054]
[1758257847730,0.4957,4560.6,4560.5,0.8229]
[1758257847926,0.7077,4561.0,4560.9,0.7054]
[1758257848125,0.825,4561.0,4560.9,0.7054]
[1758257848425,0.825,4561.0,4560.9,0.2011]
[1758257848616,0.825,4561.0,4560.9,0.515]
[1758257850329,0.7224,4561.4,4561.3,0.207]
[1758257850528,0.7224,4561.4,4561.3,0.7302]
[1758257852728,0.7224,4561.4,4561.3,0.207]
[1758257853726,0.7224,4561.3,4561.2,3.2078]
[1758257855126,0.7224,4561.3,4561.2,3.4148]
[1758257855322,0.7224,4561.3,4561.2,3.938]
[1758257858431,0.5143,4561.3,4561.2,3.938]
[1758257859423,0.7224,4561.3,4561.2,3.2078]
[1758257859830,0.7224,4561.3,4561.2,3.4148]
[1758257860327,0.7224,4561.3,4561.2,3.2078]
[1758257860532,1.78389379,4561.3,4561.2,3.2078]
[1758257861037,0.7224,4561.3,4561.2,3.4148]
[1758257861331,0.7224,4561.3,4561.2,3.7287]
[1758257862233,0.7224,4561.3,4561.2,3.2078]
[1758257862833,0.7224,4561.3,4561.2,3.938]
[1758257865136,0.5143,4561.3,4561.2,3.938]
[1758257866029,0.7224,4561.3,4561.2,3.938]
[1758257866231,1.78389379,4561.3,4561.2,0.207]
[1758257866630,0.3178,4561.0,4560.9,0.7419]
[1758257866936,0.8397,4561.0,4560.9,0.9512]
[1758257867740,1.74631905,4561.0,4560.9,0.9512]
[1758257868136,6.98731905,4561.0,4560.9,0.9512]
[1758257868642,5.4415,4561.0,4560.9,1.85781905]
[1758257868840,5.241,4561.0,4560.9,1.85781905]
[1758257869435,0.3138,4561.3,4560.9,1.85781905]
[1758257869632,0.5143,4561.3,4561.2,4.84461905]
[1758257871238,0.5143,4561.3,4561.2,3.938]
[1758257874948,0.7224,4561.3,4561.2,3.938]
[1758257875443,0.7224,4561.3,4561.2,0.207]
[1758257875751,0.7224,4561.3,4561.0,0.0219]
[1758257875936,1.59971905,4561.1,4561.0,0.5373]
[1758257876441,1.59971905,4561.1,4561.0,0.2084]
[1758257878943,0.2078,4560.8,4560.7,3.5148]
[1758257879255,1.63051905,4560.8,4560.7,3.9339]
[1758257879851,5.9649,4560.8,4560.7,3.9339]
[1758257881347,5.9649,4560.8,4560.7,4.84051905]
[1758257882150,5.9649,4560.8,4560.7,3.9339]
[1758257882454,0.7239,4560.8,4560.7,3.9339]
[1758257884743,0.7239,4560.8,4560.7,3.4156]
[1758257885038,0.7239,4560.8,4560.7,3.716]
[1758257885241,1.63051905,4560.8,4560.7,3.9273]
[1758257885443,1.43191905,4560.8,4560.7,3.9273]
[1758257887842,1.63051905,4560.8,4560.7,3.9273]
[1758257888046,1.63051905,4560.8,4560.7,3.2078]
[1758257888547,1.63051905,4560.8,4560.7,3.9273]
[1758257893950,1.63051905,4560.8,4560.7,3.4156]
[1758257894156,1.85151905,4560.8,4560.7,0.2078]
[1758257894355,2.07692172,4560.8,4560.7,0.2078]
[1758257896757,11.8260808,4560.8,4560.5,0.0219]
[1758257896959,1.63051905,4560.6,4560.5,0.0219]
[1758257897257,0.2078,4560.0,4559.9,0.7195]
[1758257897458,0.5253,4560.0,4559.9,0.7195]
[1758257897756,1.43191905,4560.0,4559.9,0.7195]
[1758257899054,0.7239,4559.9,4559.8,3.716]
[1758257902651,0.7239,4559.9,4559.8,3.4156]
[1758257903257,1.63051905,4559.9,4559.8,3.4156]
[1758257903766,1.85151905,4559.9,4559.6,0.0219]
[1758257903958,1.63051905,4559.7,4559.6,0.2297]
[1758257904361,1.63051905,4559.7,4559.6,0.2078]
[1758257904759,6.87151905,4559.7,4559.6,0.2078]
[1758257904956,6.87151905,4559.7,4559.6,0.7195]
[1758257905160,7.09251905,4559.7,4559.6,0.7195]
[1758257909859,7.09251905,4559.7,4559.6,0.2078]
[1758257910860,7.09251905,4559.7,4559.4,0.0219]
[1758257911065,1.74531905,4559.5,4559.4,0.2205]
[1758257911469,1.74531905,4559.5,4559.4,0.1986]
[1758257912272,1.74531905,4559.5,4559.4,0.516]
[1758257913071,1.96631905,4559.5,4559.4,0.516]
[1758257915480,7.20731905,4559.5,4559.4,0.516]
[1758257916880,7.20731905,4559.5,4559.4,0.1986]
[1758257917675,7.20731905,4559.5,4559.3,3.2078]
[1758257917880,0.7212,4559.4,4559.3,3.2078]
[1758257918681,0.7212,4559.4,4559.3,3.4064]
[1758257919176,0.7212,4559.4,4559.3,3.7238]
[1758257919382,0.7212,4559.4,4559.3,3.9377]
[1758257920283,0.9422,4559.4,4559.3,3.9377]
[1758257921479,6.1832,4559.4,4559.3,3.9377]
[1758257922486,5.9622,4559.4,4559.3,3.9377]
[1758257922984,6.1832,4559.4,4559.3,3.9377]
[1758257925982,7.08981905,4559.4,4559.3,3.9377]
[1758257926284,6.1832,4559.4,4559.3,4.84431905]
[1758257927082,5.9622,4559.4,4559.3,4.84431905]
[1758257927879,5.9622,4559.4,4559.3,3.9377]
[1758257930685,5.7653,4559.4,4559.3,3.9377]
[1758257932683,5.9622,4559.4,4559.3,3.9377]
[1758257935998,5.9622,4559.4,4559.3,3.2078]
[1758257936495,5.9622,4559.4,4559.3,3.4175]
[1758257936899,5.9622,4559.4,4559.3,3.7327]